fUSD/lending_fUSD_20240324
["ID","MTS","AMOUNT","RATE_DAILY","PERIOD"]
[320299358,1711273839358,-151.032417,0.00019988,3]
[320299359,1711273839368,-151.032417,0.00019988,3]
[320299360,1711273839377,-151.032417,0.00019988,3]
[320299361,1711273839387,-151.032417,0.00019988,3]
[320299362,1711273839398,-151.032417,0.00019988,3]
[320299363,1711273839408,-151.032417,0.00019988,3]
[320299364,1711273839417,-151.032417,0.00019988,3]
[320299365,1711273839426,-151.032417,0.00019988,3]
[320299366,1711273839436,-151.032417,0.00019988,3]
[320299367,1711273839446,-151.032417,0.00019988,3]
[320299368,1711273839456,-151.032417,0.00019988,3]
[320299369,1711273839466,-151.032417,0.00019988,3]
[320299370,1711273839475,-151.032417,0.00019988,2]
[320299371,1711273839485,-151.032417,0.00019988,2]
[320299372,1711273839495,-151.032417,0.00019988,2]
[320299373,1711273839504,-151.032417,0.00019988,2]
[320299374,1711273839514,-153.20942934,0.00019989,2]
[320299375,1711273839523,-13180.4477337,0.00019991,2]
[320299376,1711273839534,-155.49200959,0.00019994,2]
[320299377,1711273839543,-467.19111072,0.00019995,2]
[320299378,1711273839553,-439.8948337,0.00019995,2]
[320299379,1711273839563,-48603.9918149,0.00019995,2]
[320299380,1711273839572,-343.10938847,0.00019996,2]
[320299381,1711273839582,-58673.50580703,0.00019996,2]
[320299382,1711273839593,-360.67308014,0.00019997,2]
[320299384,1711273839603,-500.0,0.00019997,2]
[320299385,1711273839613,-195.048175,0.00019997,2]
[320299386,1711273839623,-155.0,0.00019997,2]
[320299387,1711273839633,-2781.68265531,0.00019997,2]
[320299388,1711273839643,-493.52703449,0.00019997,2]
[320299389,1711273839656,-1034.25823492,0.00019997,2]
[320299390,1711273839666,-157.80764515,0.00019997,2]
[320299391,1711273839676,-345.21232142,0.00019997,2]
[320299392,1711273839686,-215.34393008,0.00019997,2]
[320299393,1711273839695,-443.4427945,0.00019997,2]
[320299394,1711273839705,-3279.15693224,0.00019997,2]
[320299395,1711273839714,-161.14657785,0.00019997,2]
[320299396,1711273839723,-673.70574058,0.00019997,2]
[320299397,1711273839732,-733.51974371,0.00019997,2]
[320299398,1711273839742,-1061.18364021,0.00019997,2]
[320299399,1711273839751,-808.32318404,0.00019997,2]
[320299400,1711273839760,-280.4640909,0.00019997,2]
[320299401,1711273839769,-235.01017711,0.00019997,2]
[320299402,1711273839779,-164.61589807,0.00019997,2]
[320299403,1711273839788,-2069.19123848,0.00019997,2]
[320299404,1711273839798,-377.07530359,0.00019998,2]
[320299405,1711273839808,-265.68120969,0.00019998,2]
[320299406,1711273839818,-73916.26728905,0.00019998,2]
[320299407,1711273839827,-396.8158426,0.00019998,2]
[320299408,1711273839836,-659.13113289,0.00019998,2]
[320299409,1711273839846,-5938.14548468,0.00019998,2]
[320299410,1711273839859,-351.90787152,0.00019999,2]
[320299411,1711273839870,-155.0,0.00019999,2]
[320299412,1711273839880,-289132.11254878,0.00019999,2]
[320299417,1711273840341,-120.03639304,0.00019999,2]
[320299420,1711273840354,-702.7081848,0.00019999,2]
[320299434,1711273840509,-64923.74407839,0.00019999,2]
[320299435,1711273840686,-24466.35051978,0.00019999,2]
[320299436,1711273840702,-921.51149957,0.00019999,2]
[320299437,1711273840768,-55141.53315577,0.00019999,2]
[320299438,1711273840789,-361.03550893,0.00019999,2]
[320299462,1711273842709,-180.59296516,0.00019899,2]
[320299464,1711273842718,-130730.07940407,0.00019999,2]
[320299466,1711273842730,-293.30521316,0.00019999,2]
[320299471,1711273842766,-5987.56320003,0.00019999,2]
[320299474,1711273842778,-1198.51086212,0.00019999,2]
[320299488,1711273842936,-1932.01627987,0.00019999,2]
[320299489,1711273842948,-10879.02898705,0.00019999,2]
[320299490,1711273842960,-1745.58420015,0.00019999,2]
[320299491,1711273842971,-70253.07037969,0.00019999,2]
[320299496,1711273843007,-294.14994472,0.00019999,2]
[320299502,1711273843067,-1980.40151876,0.00019999,2]
[320299567,1711273845762,-386.26045843,0.00019996,2]
[320299568,1711273845771,-1551.04957589,0.00019999,2]
[320299569,1711273845782,-18049.39740631,0.00019999,2]
[320299570,1711273845794,-4714.52247968,0.00019999,2]
[320299571,1711273845825,-9158.28625,0.00019999,2]
[320299572,1711273845885,-2000.0,0.00019999,2]
[320299573,1711273845945,-2026.77504163,0.00019999,2]
[320299574,1711273845957,-281.0,0.00019999,2]
[320299575,1711273846005,-577.67532774,0.00019999,2]
[320299576,1711273846017,-13202.76778335,0.00019999,2]
[320299747,1711273859099,-5000.0,0.00021,15]
[320299748,1711273888710,1034.25823392,0.00025522,30]
[320299751,1711273934397,-751.55662504,0.00017998,5]
[320299773,1711273987965,524.87,0.00016985,2]
[320299774,1711273992406,200.61905906,0.00016438,2]
[320299775,1711273995074,-23909.73017241,0.000199,5]
[320299776,1711274001386,151.032418,0.0002,7]
[320299777,1711274001765,250.0,0.00016985,2]
[320299778,1711274014352,151.032418,0.0002,7]
[320299779,1711274015038,151.032418,0.0002,7]
[320299780,1711274015532,151.032418,0.0002,7]
[320299781,1711274016075,151.032418,0.0002,7]
[320299782,1711274016639,151.032418,0.0002,7]
[320299783,1711274018147,151.032418,0.0002,7]
[320299784,1711274019797,580.84,0.00015029,2]
[320299785,1711274029723,-514718.44916029,0.000199,5]
[320299786,1711274066049,200.0,0.00016927,2]
[320299787,1711274074245,468.32427088,0.000137,2]
[320299788,1711274130901,23900.0,0.00016919,2]
[320299789,1711274141366,250.0,0.00016919,2]
[320299790,1711274236134,529.95,0.000169,2]
[320299791,1711274237712,2005.79,0.000169,2]
[320299792,1711274240963,181.07,0.000169,2]
[320299793,1711274260625,2000.0,0.00016889,2]
[320299794,1711274304725,615.47,0.00016889,2]
[320299795,1711274321188,168.82,0.00016889,2]
[320299796,1711274335562,178.74,0.00016857,2]
[320299797,1711274345982,514.93,0.00016857,2]
[320299798,1711274380374,-193.71088867,0.00017021,2]
[320299799,1711274380395,-265.76402313,0.00017022,2]
[320299800,1711274380415,-4176.20745497,0.00017022,2]
[320299801,1711274380435,-364.31763323,0.00017022,2]
[320299802,1711274411760,-1229.28872733,0.00017018,2]
[320299803,1711274411779,-258.15917987,0.00017019,2]
[320299804,1711274411799,-160.47350713,0.00017019,2]
[320299805,1711274411819,-360.9119661,0.00017019,2]
[320299806,1711274411839,-155.0,0.0001702,2]
[320299807,1711274411858,-5577.69066129,0.00017022,2]
[320299808,1711274411877,-1383.77,0.00017024,2]
[320299809,1711274411899,-2057.28397905,0.00017084,2]
[320299810,1711274411917,-4638.87533065,0.00017096,2]
[320299811,1711274411938,-580.84,0.00017293,2]
[320299812,1711274411957,-167.86,0.00017407,2]
[320299813,1711274411977,-447.2,0.00017407,2]
[320299814,1711274411996,-1548.19,0.00017407,2]
[320299815,1711274412016,-611.4,0.00017407,2]
[320299816,1711274412035,-175.02,0.00017475,2]
[320299817,1711274412056,-12484.94124997,0.000175,2]
[320299818,1711274412076,-290.85,0.00017644,2]
[320299819,1711274412096,-290.85,0.00017692,2]
[320299820,1711274412117,-290.85,0.00017741,2]
[320299821,1711274412138,-290.85,0.00017789,2]
[320299822,1711274412159,-898.99661219,0.00017799,2]
[320299823,1711274412180,-226.0,0.00017835,2]
[320299824,1711274412201,-152.0,0.00017835,2]
[320299825,1711274412225,-151.0,0.00017835,2]
[320299826,1711274412246,-290.85,0.00017838,2]
[320299827,1711274412270,-290.85,0.00017886,2]
[320299828,1711274412291,-158.81392653,0.00017898,2]
[320299829,1711274412312,-331.923,0.00017899,2]
[320299830,1711274412331,-4425.9544,0.00017899,2]
[320299831,1711274412351,-7773.30745989,0.00017899,2]
[320299833,1711274487727,522.75,0.00015017,2]
[320299834,1711274556369,9643.96,0.00016903,2]
[320299835,1711274596310,-155.0,0.00017096,2]
[320299836,1711274596345,-1616.90102781,0.00017097,2]
[320299837,1711274596367,-1286.67205965,0.00017098,2]
[320299838,1711274596390,-522.75,0.00017281,2]
[320299839,1711274596412,-203.59,0.0001731,2]
[320299840,1711274596433,-203.59,0.00017357,2]
[320299841,1711274596454,-203.59,0.00017405,2]
[320299842,1711274596475,-203.59,0.00017452,2]
[320299843,1711274596496,-203.59,0.000175,2]
[320299844,1711274596522,-203.59,0.00017547,2]
[320299845,1711274596543,-203.59,0.00017595,2]
[320299846,1711274596565,-499.99,0.00017595,2]
[320299847,1711274596589,-203.59,0.00017642,2]
[320299848,1711274596612,-203.59,0.0001769,2]
[320299849,1711274596633,-203.59,0.00017737,2]
[320299850,1711274596653,-203.59,0.00017785,2]
[320299851,1711274596674,-203.59,0.00017832,2]
[320299852,1711274596696,-203.59,0.0001788,2]
[320299853,1711274596716,-3272.01691254,0.00017899,2]
[320299854,1711274773939,-156.11,0.00017067,2]
[320299855,1711274773964,-576.04,0.00017125,2]
[320299856,1711274773994,-1336.86,0.0001715,2]
[320299857,1711274774018,-262.43,0.0001717,2]
[320299858,1711274774041,-250.0,0.00017342,2]
[320299859,1711274774062,-2855.56372757,0.00017899,2]
[320299860,1711274774087,-1125.7945,0.00017899,2]
[320299861,1711274774110,-1000.0,0.00017899,2]
[320299862,1711274774131,-2437.20177243,0.00017899,2]
[320299863,1711274818026,-160.47350713,0.00017066,2]
[320299864,1711274818046,-29606.81162757,0.00017899,2]
[320299865,1711274818066,-1037.11862338,0.00017899,2]
[320299866,1711274818085,-177.99290905,0.00017899,2]
[320299867,1711274818107,-307.60958202,0.000179,2]
[320299868,1711274818127,-1331.52086308,0.000179,2]
[320299869,1711274818146,-7500.0,0.000179,2]
[320299870,1711274818166,-171.90459422,0.000179,2]
[320299871,1711274818185,-264.13505556,0.000179,2]
[320299872,1711274818205,-307.609582,0.00017906,2]
[320299873,1711274818226,-307.609582,0.00017911,2]
[320299874,1711274818246,-307.609582,0.00017917,2]
[320299875,1711274818267,-307.609582,0.00017922,2]
[320299876,1711274818517,-203.59,0.00017927,2]
[320299877,1711274818547,-800.0,0.00017973,2]
[320299878,1711274818570,-203.59,0.00017975,2]
[320299879,1711274818593,-151.032417,0.00017988,3]
[320299880,1711274818613,-151.032417,0.00017988,3]
[320299881,1711274818635,-151.032417,0.00017988,3]
[320299882,1711274818657,-151.032417,0.00017988,3]
[320299883,1711274818678,-151.032417,0.00017988,3]
[320299884,1711274818699,-151.032417,0.00017988,3]
[320299885,1711274818720,-98.62040799,0.00017988,3]
[320299886,1711274978043,470.47,0.00015291,2]
[320299916,1711275031889,-509.33243117,0.00017491,2]
[320299921,1711275031975,-21.69772777,0.00017491,2]
[320299922,1711275031986,-169.65,0.00017492,2]
[320299923,1711275031995,-146.70258091,0.00017555,2]
[320299924,1711275032472,-323.76741909,0.00017555,2]
[320299925,1711275032481,-169.65,0.00017675,2]
[320299926,1711275032491,-169.65,0.00017857,2]
[320299927,1711275032500,-158.64629266,0.00017888,2]
[320299928,1711275032510,-73.17329707,0.0001789,2]
[320299929,1711275032538,-85.47299557,0.0001789,2]
[320299930,1711275032548,-158.64629264,0.00017892,2]
[320299931,1711275032557,-158.64629264,0.00017895,2]
[320299932,1711275032567,-158.64629264,0.00017897,2]
[320299933,1711275032576,-1000.0,0.00017899,2]
[320299934,1711275032585,-2500.0,0.00017899,2]
[320299935,1711275032595,-158.64629264,0.00017899,2]
[320299936,1711275032605,-4928.60320887,0.00017899,2]
[320299937,1711275032618,-20000.000001,0.000179,2]
[320299938,1711275032628,-176.09003704,0.000179,2]
[320299939,1711275032638,-171.9045942,0.000179,2]
[320299940,1711275032648,-1176.1642243,0.000179,2]
[320299941,1711275032657,-887.68057538,0.000179,2]
[320299942,1711275032667,-52.41200901,0.00017988,3]
[320299943,1711275032676,-151.032417,0.00017988,3]
[320299944,1711275032687,-151.032417,0.00017988,3]
[320299945,1711275032696,-151.032417,0.00017988,3]
[320299946,1711275032706,-151.032417,0.00017988,2]
[320299947,1711275032716,-151.032417,0.00017988,2]
[320299948,1711275032726,-151.032417,0.00017988,2]
[320299949,1711275032738,-151.032417,0.00017988,2]
[320299950,1711275032747,-151.032417,0.00017988,2]
[320299951,1711275032756,-151.032417,0.00017988,2]
[320299952,1711275032766,-151.032417,0.00017988,2]
[320299953,1711275032775,-151.032417,0.00017988,2]
[320299954,1711275032784,-151.032417,0.00017988,2]
[320299955,1711275032795,-151.032417,0.00017988,2]
[320299956,1711275032804,-151.032418,0.00017988,2]
[320299957,1711275032814,-151.032418,0.00017988,2]
[320299958,1711275032824,-151.032418,0.00017988,2]
[320299959,1711275032833,-151.032418,0.00017988,2]
[320299960,1711275032845,-153.20942934,0.00017989,2]
[320299961,1711275032854,-424.25275734,0.00017989,2]
[320299962,1711275032863,-310.90256536,0.00017997,2]
[320299963,1711275032872,-155.49200959,0.00017997,2]
[320299964,1711275032882,-808.32318404,0.00017998,2]
[320299965,1711275032890,-280.4640909,0.00017998,2]
[320299966,1711275032900,-2781.68265531,0.00017998,2]
[320299967,1711275032910,-443.4427945,0.00017998,2]
[320299968,1711275032919,-500.0,0.00017998,2]
[320299969,1711275032929,-345.21232142,0.00017998,2]
[320299970,1711275032938,-673.70574058,0.00017998,2]
[320299971,1711275032947,-377.07530359,0.00017998,2]
[320299972,1711275032957,-235.01017711,0.00017998,2]
[320299973,1711275032966,-169.3620795,0.00017998,2]
[320299974,1711275032975,-164.61589807,0.00017998,2]
[320299975,1711275032984,-157.80764515,0.00017998,2]
[320299976,1711275032994,-493.52703449,0.00017998,2]
[320299977,1711275033004,-1061.18364021,0.00017998,2]
[320299978,1711275033013,-785.21790902,0.00017998,2]
[320299979,1711275033025,-308.62981323,0.00017998,2]
[320299980,1711275033036,-302.71768567,0.00017998,2]
[320299981,1711275033048,-2347.15576646,0.00017998,2]
[320299982,1711275033059,-215.34393008,0.00017998,2]
[320299983,1711275033069,-155.0,0.00017998,2]
[320299984,1711275033078,-446.43690151,0.00017998,2]
[320299985,1711275033087,-569.96669842,0.00017998,2]
[320299986,1711275033098,-203.40077725,0.00017998,2]
[320299987,1711275033107,-548.19956647,0.00017998,2]
[320299988,1711275033116,-616.16446858,0.00017998,2]
[320299989,1711275033125,-155.34283485,0.00017998,2]
[320299990,1711275033135,-155.21103832,0.00017998,2]
[320299991,1711275033144,-1569.19437095,0.00017998,2]
[320299992,1711275033155,-155.93939712,0.00017998,2]
[320299993,1711275033165,-843.46695987,0.00017998,2]
[320299994,1711275033174,-251.97636858,0.00017998,2]
[320299995,1711275033184,-201.70306154,0.00017998,2]
[320299996,1711275033194,-4157.81686675,0.00017998,2]
[320299997,1711275033204,-58673.50580703,0.00017998,2]
[320299998,1711275033213,-166.38900271,0.00017998,2]
[320299999,1711275033222,-440.7574352,0.00017998,2]
[320300000,1711275033231,-647.91968568,0.00017998,2]
[320300001,1711275033242,-265.59839625,0.00017998,2]
[320300002,1711275033251,-195.28360126,0.00017998,2]
[320300003,1711275033260,-396.72133789,0.00017998,2]
[320300004,1711275033270,-360.18540109,0.00017998,2]
[320300005,1711275033279,-1708.58707502,0.00017998,2]
[320300006,1711275033289,-1238.94442072,0.00017998,2]
[320300007,1711275033299,-4697.47901234,0.00017998,2]
[320300008,1711275033308,-155.0,0.00017998,2]
[320300009,1711275033318,-343.10938847,0.00017998,2]
[320300010,1711275033327,-659.13113289,0.00017999,2]
[320300011,1711275033336,-73916.26728905,0.00017999,2]
[320300012,1711275033345,-1027497.12700434,0.00017999,2]
[320300013,1711275033358,-1550.0,0.00017999,2]
[320300014,1711275033381,-213.8238,0.00017808,2]
[320300015,1711275033390,-31385.3511983,0.00017999,2]
[320300016,1711275033401,-361.05760496,0.00017999,2]
[320300033,1711275037867,-3002.62305133,0.00017999,2]
[320300034,1711275037881,-829.39440448,0.00017999,2]
[320300035,1711275037894,-831.78264274,0.00017999,2]
[320300036,1711275038035,-598932.85869505,0.00017999,2]
[320300037,1711275038045,-83634.80883746,0.00017999,2]
[320300038,1711275038056,-3667.906,0.00018,2]
[320300039,1711275038066,-563862.30746865,0.00018,2]
[320300040,1711275038083,-250.39418971,0.00018,2]
[320300041,1711275038143,-734.70866164,0.00018,2]
[320300042,1711275038155,-367.5223,0.00018,2]
[320300043,1711275038168,-314.89714865,0.00018,2]
[320300044,1711275038201,-5371.65907685,0.00018,2]
[320300045,1711275038213,-386.24020838,0.00018,2]
[320300156,1711275040181,-688.339995,0.00018,2]
[320300270,1711275042831,-6577.9739,0.00018,2]
[320300271,1711275042941,-163995.13663555,0.00018,2]
[320300272,1711275043054,-4020.51368867,0.00018,2]
[320300273,1711275043113,-720.731,0.00018,2]
[320300274,1711275043126,-9276.24442603,0.00018,2]
[320300275,1711275043140,-1017.62232587,0.00018,2]
[320300276,1711275043222,-812.31027092,0.00018,2]
[320300277,1711275043273,-4583.85,0.00018,2]
[320300291,1711275046140,-2000.0,0.00018,2]
[320300293,1711275047255,-1069.88973215,0.00018,2]
[320300294,1711275047621,-403.74961218,0.00018,2]
[320300298,1711275243402,-178.54768238,0.000179,2]
[320300299,1711275243424,-1181.98437114,0.000179,2]
[320300300,1711275243445,-500.0,0.000179,2]
[320300301,1711275243468,-9697.227,0.000179,2]
[320300302,1711275243489,-171.9045942,0.000179,2]
[320300303,1711275243511,-151.032418,0.00017988,2]
[320300304,1711275243534,-151.032418,0.00017988,2]
[320300305,1711275243557,-151.032418,0.00017988,2]
[320300306,1711275243581,-151.032418,0.00017988,2]
[320300307,1711275243607,-151.032418,0.00017988,2]
[320300308,1711275243633,-151.032418,0.00017988,2]
[320300309,1711275243657,-151.032418,0.00017988,2]
[320300310,1711275243687,-151.032418,0.00017988,2]
[320300311,1711275243713,-151.032419,0.00017988,3]
[320300312,1711275243737,-151.032419,0.00017988,3]
[320300313,1711275243764,-151.032419,0.00017988,3]
[320300314,1711275243789,-151.032419,0.00017988,3]
[320300315,1711275243812,-151.032419,0.00017988,3]
[320300316,1711275243835,-151.032419,0.00017988,3]
[320300317,1711275243858,-151.032419,0.00017988,3]
[320300318,1711275243881,-151.032419,0.00017988,3]
[320300319,1711275243904,-265.68120969,0.00017998,2]
[320300320,1711275243927,-135588.13644659,0.00017999,2]
[320300322,1711275431627,438.46,0.00016169,2]
[320300323,1711275866483,375.31093336,0.00016107,2]
[320300324,1711275872154,416.53,0.00016171,2]
[320300325,1711275904170,780.53183156,0.000162,2]
[320300326,1711275904520,780.53183156,0.00016218,2]
[320300327,1711275904855,780.53183156,0.00016236,2]
[320300328,1711275905190,780.53183156,0.00016255,2]
[320300329,1711275905536,780.53183156,0.00016273,2]
[320300330,1711275906412,780.53183156,0.00016291,2]
[320300331,1711275906728,780.53183156,0.00016309,2]
[320300332,1711275907071,780.53183156,0.00016327,2]
[320300333,1711275907392,780.53183156,0.00016345,2]
[320300334,1711275908243,780.53183156,0.00016364,2]
[320300335,1711275908327,780.53183156,0.00016382,2]
[320300336,1711275908682,780.53183156,0.000164,2]
[320300337,1711275909025,780.53183156,0.00016418,2]
[320300338,1711275909353,780.53183156,0.00016436,2]
[320300339,1711275909712,780.53183156,0.00016455,2]
[320300340,1711275910241,780.53183156,0.00016473,2]
[320300341,1711275910334,780.53183156,0.00016491,2]
[320300342,1711275910674,780.53183156,0.00016509,2]
[320300343,1711275910987,780.53183156,0.00016527,2]
[320300344,1711275911335,780.53183156,0.00016545,2]
[320300345,1711275911672,780.53183156,0.00016564,2]
[320300346,1711275912015,637.29022778,0.00016582,2]
[320300347,1711275912047,143.24160378,0.00016582,2]
[320300348,1711275912369,780.53183156,0.000166,2]
[320300349,1711275912668,780.53183156,0.00016618,2]
[320300350,1711275913010,780.53183156,0.00016636,2]
[320300351,1711275913368,780.53183156,0.00016655,2]
[320300352,1711275913689,780.53183156,0.00016673,2]
[320300353,1711275914026,780.53183156,0.00016691,2]
[320300354,1711275914351,780.53183156,0.00016709,2]
[320300355,1711275914831,780.53183156,0.00016727,2]
[320300356,1711275915178,780.53183156,0.00016745,2]
[320300357,1711275915526,780.53183156,0.00016764,2]
[320300358,1711275915860,780.53183156,0.00016782,2]
[320300359,1711275916359,780.53183156,0.000168,2]
[320300360,1711275916681,780.53183156,0.00016818,2]
[320300361,1711275917029,780.53183156,0.00016836,2]
[320300362,1711275917376,780.53183156,0.00016855,2]
[320300363,1711275917720,780.53183156,0.00016873,2]
[320300364,1711275918240,780.53183156,0.00016891,2]
[320300365,1711275918713,780.53183156,0.00016909,2]
[320300366,1711275918858,780.53183156,0.00016927,2]
[320300367,1711275919081,780.53183156,0.00016945,2]
[320300368,1711275919405,780.53183156,0.00016964,2]
[320300369,1711275919790,780.53183156,0.00016982,2]
[320300370,1711275920162,780.53183156,0.00017,2]
[320300371,1711275943714,284.84337808,0.000162,2]
[320300372,1711275944029,284.84337808,0.00016218,2]
[320300373,1711275944354,284.84337808,0.00016236,2]
[320300374,1711275944656,284.84337808,0.00016255,2]
[320300375,1711275945003,284.84337808,0.00016273,2]
[320300376,1711275945345,284.84337808,0.00016291,2]
[320300377,1711275945719,284.84337808,0.00016309,2]
[320300378,1711275946034,284.84337808,0.00016327,2]
[320300379,1711275946443,284.84337808,0.00016345,2]
[320300380,1711275946792,284.84337808,0.00016364,2]
[320300381,1711275947126,284.84337808,0.00016382,2]
[320300382,1711275948010,284.84337808,0.000164,2]
[320300383,1711275948345,284.84337808,0.00016418,2]
[320300384,1711275949799,284.84337808,0.00016436,2]
[320300385,1711275950699,284.84337808,0.00016455,2]
[320300386,1711275950793,284.84337808,0.00016473,2]
[320300387,1711275950873,284.84337808,0.00016491,2]
[320300388,1711275951167,284.84337808,0.00016509,2]
[320300389,1711275951516,284.84337808,0.00016527,2]
[320300390,1711275951928,284.84337808,0.00016545,2]
[320300391,1711275952313,284.84337808,0.00016564,2]
[320300392,1711275952630,284.84337808,0.00016582,2]
[320300393,1711275952939,284.84337808,0.000166,2]
[320300394,1711275953454,284.84337808,0.00016618,2]
[320300395,1711275953821,284.84337808,0.00016636,2]
[320300396,1711275954115,284.84337808,0.00016655,2]
[320300397,1711275954496,284.84337808,0.00016673,2]
[320300398,1711275954866,284.84337808,0.00016691,2]
[320300399,1711275955220,284.84337808,0.00016709,2]
[320300400,1711275955526,284.84337808,0.00016727,2]
[320300401,1711275955865,284.84337808,0.00016745,2]
[320300402,1711275956177,284.84337808,0.00016764,2]
[320300403,1711275956529,284.84337808,0.00016782,2]
[320300404,1711275956878,284.84337808,0.000168,2]
[320300405,1711275957224,284.84337808,0.00016818,2]
[320300406,1711275958117,284.84337808,0.00016836,2]
[320300407,1711275958439,284.84337808,0.00016855,2]
[320300408,1711275958967,284.84337808,0.00016873,2]
[320300409,1711275959104,284.84337808,0.00016891,2]
[320300410,1711275959443,284.84337808,0.00016909,2]
[320300411,1711275959802,284.84337808,0.00016927,2]
[320300412,1711275960165,284.84337808,0.00016945,2]
[320300413,1711275960528,284.84337808,0.00016964,2]
[320300414,1711275961230,284.84337808,0.00016982,2]
[320300415,1711275961337,284.84337808,0.00017,2]
[320300417,1711275983062,150.0,0.000162,2]
[320300418,1711275983545,150.0,0.0001665,2]
[320300420,1711275988328,355.33038742,0.000162,2]
[320300421,1711275988677,355.33038742,0.00016218,2]
[320300422,1711275988990,355.33038742,0.00016236,2]
[320300423,1711275989334,355.33038742,0.00016255,2]
[320300424,1711275989668,355.33038742,0.00016273,2]
[320300425,1711275989994,355.33038742,0.00016291,2]
[320300426,1711275990362,355.33038742,0.00016309,2]
[320300427,1711275990681,355.33038742,0.00016327,2]
[320300428,1711275991021,355.33038742,0.00016345,2]
[320300429,1711275991349,355.33038742,0.00016364,2]
[320300430,1711275991775,355.33038742,0.00016382,2]
[320300431,1711275992683,355.33038742,0.000164,2]
[320300432,1711275992738,355.33038742,0.00016418,2]
[320300433,1711275992814,355.33038742,0.00016436,2]
[320300434,1711275993111,355.33038742,0.00016455,2]
[320300435,1711275993461,355.33038742,0.00016473,2]
[320300436,1711275993785,355.33038742,0.00016491,2]
[320300437,1711275994118,355.33038742,0.00016509,2]
[320300438,1711275994447,355.33038742,0.00016527,2]
[320300439,1711275994862,355.33038742,0.00016545,2]
[320300440,1711275995203,355.33038742,0.00016564,2]
[320300442,1711275995542,355.33038742,0.00016582,2]
[320300443,1711275995852,355.33038742,0.000166,2]
[320300444,1711275996170,355.33038742,0.00016618,2]
[320300445,1711275996498,355.33038742,0.00016636,2]
[320300446,1711275996808,355.33038742,0.00016655,2]
[320300447,1711275997131,355.33038742,0.00016673,2]
[320300448,1711275997474,355.33038742,0.00016691,2]
[320300449,1711275998319,355.33038742,0.00016709,2]
[320300450,1711275998625,355.33038742,0.00016727,2]
[320300451,1711275998941,355.33038742,0.00016745,2]
[320300452,1711275999332,355.33038742,0.00016764,2]
[320300453,1711275999618,355.33038742,0.00016782,2]
[320300454,1711275999973,355.33038742,0.000168,2]
[320300455,1711276000322,355.33038742,0.00016818,2]
[320300456,1711276000620,355.33038742,0.00016836,2]
[320300457,1711276000987,355.33038742,0.00016855,2]
[320300458,1711276001507,355.33038742,0.00016873,2]
[320300459,1711276001660,355.33038742,0.00016891,2]
[320300460,1711276002023,355.33038742,0.00016909,2]
[320300461,1711276002340,355.33038742,0.00016927,2]
[320300462,1711276003065,355.33038742,0.00016945,2]
[320300464,1711276003533,355.33038742,0.00016964,2]
[320300465,1711276003849,355.33038742,0.00016982,2]
[320300466,1711276004324,355.33038742,0.00017,2]
[320300469,1711276022075,890.22,0.00016588,2]
[320300471,1711276027869,150.0,0.000162,2]
[320300472,1711276028232,150.0,0.00016243,2]
[320300473,1711276028580,150.0,0.00016286,2]
[320300474,1711276028951,150.0,0.00016329,2]
[320300475,1711276029287,262.43,0.00016588,2]
[320300476,1711276029342,150.0,0.00016371,2]
[320300477,1711276029631,150.0,0.00016414,2]
[320300478,1711276029989,150.0,0.00016457,2]
[320300479,1711276030304,150.0,0.000165,2]
[320300480,1711276030618,150.0,0.00016543,2]
[320300481,1711276030958,150.0,0.00016586,2]
[320300482,1711276031876,150.0,0.00016629,2]
[320300483,1711276032205,150.0,0.00016671,2]
[320300484,1711276032538,150.0,0.00016714,2]
[320300485,1711276032877,150.0,0.00016757,2]